[Event "7th Sharjah Challengers 2024"]
[Site "Sharjah"]
[Date "2024.05.14"]
[Round "1.8"]
[White "Sureka Akshat"]
[Black "Divya Deshmukh"]
[Result "0-1"]
[ECO "A04"]
[WhiteElo "2141"]
[BlackElo "2443"]
[Annotator "TA"]
[PlyCount "153"]
[EventDate "2024.05.13"]
[EventType "swiss"]
[EventCountry "UAE"]
[SourceTitle "playchess.com"]
[Source "ChessBase"]
[SourceQuality "1"]
[TimeControl "5400+30"]

{[%evp 9,153,-7,-6,-11,-8,-12,-11,-13,-14,-11,0,-9,-6,0,6,0,33,29,43,3,48,52,55,39,63,61,68,12,14,11,18,12,27,0,14,0,0,0,20,19,44,3,10,0,18,-32,31,0,0,0,0,0,0,-37,-39,-34,0,0,0,0,0,0,31,31,31,31,31,0,39,-32,73,-180,-187,-205,-258,-327,-240,-250,-216,-209,-212,-216,-216,-189,-162,-225,-162,-144,-132,-132,-133,-176,-160,-322,-314,-214,-210,-276,-168,-197,0,-279,-223,-247,-202,-193,-190,-325,-303,-283,0,-203,-130,-191,-66,-85,-71,-120,-92,-134,-59,-116,-93,-143,-99,-122,-109,-148,-63,-80,0,-151,-153,-156,-165,-227,-257,-1659,-622,-610,-277,-484,-347,-623,-495,-6307]} 1. b3 {[%emt 0:02:02]} c5 {[%emt 0:00:37]} 2. Bb2 {[%emt 0:00:27]} Nc6 {[%emt 0:00:11]} 3. Nf3 {[%emt 0:00:19]} d6 {[%emt 0:00:26]} 4. g3 {[%emt 0:00:34]} e5 {[%emt 0:00:22]} 5. d3 {[%emt 0:00:19]} g6 {[%emt 0:02:50]} 6. c4 {[%emt 0:08:12]} Bg7 {[%emt 0:01:20]} 7. Bg2 {[%emt 0:06:38]} Nge7 {[%emt 0:04:22]} 8. O-O {[%emt 0:01:13] The position is equal.} O-O {[%emt 0:00:05][%cal Oe5e4]} 9. Nc3 {[%emt 0:02:13]} h6 {[%emt 0:02:18]} 10. a3 {[%emt 0:06:02]} Be6 {[%emt 0:01:42]} 11. Nd2 {[%emt 0:10:36]} Qd7 {[%emt 0:12:56]} 12. Nd5 {[%emt 0:03:06]} Rad8 {[%emt 0:01:56]} 13. b4 {[%emt 0:07:22][%cal Bb3b4,Bb4b5][%mdl 32]} b6 {[%emt 0:19:32]} 14. Bc3 {[%emt 0:03:22]} Nc8 {[%emt 0:08:00]} 15. b5 {[%emt 0:05:42]} N6e7 {[%emt 0:00:49]} 16. a4 {[%emt 0:03:25]} Nxd5 {[%emt 0:03:01]} 17. cxd5 {[%emt 0:00:08]} Bh3 {[%emt 0:00:03]} 18. Qb3 {[%emt 0:02:32]} (18. Bxh3 $14 Qxh3 19. e3) 18... Bxg2 $11 {[%emt 0:08:03]} 19. Kxg2 {[%emt 0:35:48]} f5 {[%emt 0:00:05]} 20. e4 {[%emt 0:00:00]} Rf7 {[%emt 0:03:28]} 21. f3 {[%emt 0:00:00]} Rdf8 {[%emt 0:02:06]} 22. h3 {[%emt 0:00:00]} h5 {[%emt 0:00:30]} 23. Nc4 {[%emt 0:00:00]} Kh7 {[%emt 0:09:31]} 24. Qc2 {[%emt 0:00:00]} Qe7 {[%emt 0:02:51]} 25. a5 {[%emt 0:00:00]} Bh6 {[%emt 0:06:32]} 26. axb6 {[%emt 0:00:16]} axb6 {[%emt 0:00:02]} 27. Ra6 {[%emt 0:01:23]} (27. Qe2 $11) 27... Qd8 {[%emt 0:01:15]} (27... h4 $15) 28. Qe2 {[%emt 0:00:42]} h4 {[%emt 0:00:41]} 29. g4 {[%emt 0:00:24]} fxg4 {[%emt 0:00:22]} 30. hxg4 {[%emt 0:00:01]} Qd7 {[%emt 0:00:00]} 31. Kh3 {[%emt 0:01:40]} (31. Nxb6 $2 Qxb5 $19) 31... Bf4 {[%emt 0:02:41]} 32. Ra8 {[%emt 0:00:54][%cal Oa8c8]} Qc7 {[%emt 0:01:10]} (32... Rf6 {with more complications.} 33. Kg2 Bg5 34. Be1 Kg7) 33. Bd2 {[%emt 0:00:45]} (33. Kxh4 Kg8 34. Kh3 Rh7+ 35. Kg2 Rh2+ 36. Kg1 Qh7 (36... Rxe2 $2 37. Rf2 $19) 37. Bd2 Rh1+ (37... Rxe2 $2 38. Rf2 $19) 38. Kf2 Qh4+ 39. Kg2 Qh2#) 33... Bxd2 {[%emt 0:03:15]} 34. Nxd2 {[%emt 0:00:01]} (34. Qxd2 $2 Rxf3+ 35. Rxf3 (35. Kxh4 $2 Rxf1 $19) 35... Rxf3+ 36. Kh2 (36. Kxh4 $2 Qb7 $19) 36... Qf7 $19) 34... g5 {[%emt 0:00:06]} 35. Nc4 {[%emt 0:00:51]} Rf6 {[%emt 0:01:47] Black is weak on the light squares} 36. Ne3 {[%emt 0:00:53]} Qb7 {[%emt 0:00:40]} 37. Ra2 {[%emt 0:00:29]} Qd7 {[%emt 0:00:20]} 38. Rb2 {[%emt 0:00:21]} Na7 {[%emt 0:02:21] [#]} 39. d4 {[%emt 0:00:42]} exd4 {[%emt 0:00:41]} (39... cxd4 $15 40. Nf5 Rc8) 40. Nc4 $2 {[%emt 0:00:35][%mdl 8192]} (40. Nf5 $16 {is forced if you want to stay better.}) 40... Nc8 {[%emt 0:00:52]} ({Stronger than} 40... Nxb5 41. Nxb6 Qf7 42. Rxb5 $11) 41. Qd3 {[%emt 0:00:25]} Kh6 {[%emt 0:00:10]} 42. Qe2 {[%emt 0:00:29]} Rf4 {[%emt 0:00:43]} 43. Rb3 {[%emt 0:00:15]} Qd8 {[%emt 0:00:29]} 44. Ra3 {[%emt 0:00:37]} Qe8 {[%emt 0:00:31]} 45. Rb3 {[%emt 0:00:36]} Qf7 {[%emt 0:00:46] White must now prevent ...Re8.} 46. Kg2 {[%emt 0:00:27]} Re8 {[%emt 0:00:16]} 47. Qd3 {[%emt 0:00:31]} (47. Rf2 $142) 47... Qd7 {[%emt 0:00:03]} 48. Kh2 {[%emt 0:00:39]} Qd8 {[%emt 0:00:27]} 49. Ra3 {[%emt 0:00:29]} Rf7 {[%emt 0:00:52]} 50. Ra6 {[%emt 0:00:21]} Qf6 {[%emt 0:00:24] And now ...Qf4+ would win.} 51. Kg2 $2 {[%emt 0:00:42] [#]} (51. Kg1 $17) 51... Qf4 $1 $19 {[%emt 0:00:15] ...Qg3+ would now be deadly.} 52. Ra2 {[%emt 0:00:23]} Kg7 {[%emt 0:01:02]} 53. Rb2 {[%emt 0:00:32]} Kf8 {[%emt 0:00:21]} 54. Rbf2 {[%emt 0:00:27]} Kg7 {[%emt 0:00:48]} (54... Qg3+ $142 55. Kh1 Kg7) 55. Rb2 $1 {[%emt 0:00:30]} Ra7 {[%emt 0:00:09]} 56. Kh1 {[%emt 0:00:24]} Rae7 {[%emt 0:00:30]} 57. Ra2 {[%emt 0:00:19]} Rf8 {[%emt 0:00:30][%cal Oe7e4]} 58. Kg2 {[%emt 0:00:32]} (58. Ra8 $142) 58... Ref7 {[%emt 0:00:48]} 59. Kh1 {[%emt 0:00:35]} Re7 $2 {[%emt 0:00:24]} (59... Qg3 $19 {[%cal Rf7f3]} 60. Raf2 Qh3+ 61. Kg1 Kh6) 60. Re2 $2 {[%emt 0:00:19]} (60. Kg2 $1 $11) 60... h3 {[%emt 0:00:35]} 61. Qd2 {[%emt 0:00:54]} (61. Qc2 $17 {is a better defense.}) 61... Qf6 {[%emt 0:00:08]} (61... Qxd2 $19 62. Nxd2 Ra7) 62. Qd3 {[%emt 0:00:34]} Qg6 {[%emt 0:00:50]} 63. Kh2 {[%emt 0:00:29]} (63. Ra2 $142) 63... Ref7 $17 {[%emt 0:00:37]} 64. Ref2 {[%emt 0:00:25]} Ra7 {[%emt 0:00:28]} (64... Ne7 $17 {Strongly threatening ...Nxd5.} 65. Nxb6 Qf6) 65. Kh1 {[%emt 0:00:35]} (65. Qe2 $15) 65... Ra4 {[%emt 0:00:17]} 66. Rb1 {[%emt 0:00:31]} (66. Rh2 $142) 66... Qf6 {[%emt 0:00:24]} 67. Qc2 {[%emt 0:00:17]} Ra7 {[%emt 0:00:27]} 68. Qd2 {[%emt 0:00:13]} Qh6 {[%emt 0:00:33]} (68... Ne7 $17 {Hoping for ...Ng6.} 69. Nxb6 Ng6) 69. Re1 {[%emt 0:00:32]} Qh4 {[%emt 0:00:42]} ({Black should try} 69... Rf4 $17 70. Qe2 Qf6) 70. Kh2 $2 {[%emt 0:00:46]} (70. e5 $11) 70... Ra4 {[%emt 0:00:20] Dancing on a razor blade.} 71. Rc1 {[%emt 0:00:32]} Rf7 {[%emt 0:00:45]} 72. e5 {[%emt 0:00:39]} (72. Rff1 {might work better.}) 72... Rxc4 $1 $19 {[%emt 0:00:18]} 73. Rc2 $2 {[%emt 0:01:04]} (73. Rxc4 dxe5 74. Rf1) 73... Rc3 74. Rxc3 {[%emt 0:00:00]} dxe5 {[%emt 0:00:31]} (74... dxc3 $142 75. Qe3 dxe5 76. Qxe5+ Kf8) 75. Rc4 $2 {[%emt 0:00:00]} (75. Rc2 Qh6 (75... Nd6 $2 76. Qe1 $19) 76. Ra2) 75... e4 {[%emt 0:00:11] Threatens to win with ...e3.} 76. Qe2 $2 {[%emt 0:00:50]} (76. Rxd4 cxd4 77. Qxd4+ Kg8 78. d6 Nxd6 (78... exf3 79. Rd2 $11) (78... Rxf3 79. Rxf3 Nxd6 80. Qd5+ Kh7 81. Rf8) 79. Rd2) 76... Nd6 {[%emt 0:00:07]} 77. Rf1 {[%emt 0:00:37] Weighted Error Value: White=0.32/Black=0.31.  Loses game:     	White=3     	---        Missed win:     	---       	Black=1      Mistake:       	White=14    	Black=7      Inaccurate:     	White=10    	Black=9      OK:         	White=22    	Black=19     Best:        	White=1     	Black=1      Strong:       	White=1     	Black=2} (77. Rc1 $142 e3 78. Rff1) 0-1

[Event "7th Sharjah Challengers 2024"]
[Site "Sharjah"]
[Date "2024.05.14"]
[Round "1.9"]
[White "Mohammad Fahad, Rahman"]
[Black "Ovezdurdyyeva, Jemal"]
[Result "1-0"]
[ECO "B90"]
[WhiteElo "2435"]
[BlackElo "2145"]
[Annotator "RC"]
[PlyCount "149"]
[EventDate "2024.05.13"]
[EventType "swiss"]
[EventCountry "UAE"]
[SourceTitle "playchess.com"]
[Source "ChessBase"]
[SourceQuality "1"]
[TimeControl "5400+30"]

1. e4 {[%emt 0:00:12]} c5 {[%emt 0:00:31]} 2. Nf3 {[%emt 0:00:17]} d6 {[%emt 0:00:06]} 3. d4 {[%emt 0:00:09]} cxd4 {[%emt 0:00:19]} 4. Nxd4 {[%emt 0:00:06]} Nf6 {[%emt 0:00:10]} 5. Nc3 {[%emt 0:00:15]} a6 {[%emt 0:00:05]} 6. Rg1 {[%emt 0:00:29]} e5 {[%emt 0:01:49]} 7. Nb3 {[%emt 0:00:07]} h5 {[%emt 0:00:49]} 8. h3 {[%emt 0:05:52]} Be6 {[%emt 0:03:23]} 9. Be3 {[%emt 0:01:22]} Be7 {[%emt 0:05:24]} 10. Qf3 {[%emt 0:00:52]} Nbd7 {[%emt 0:06:55]} 11. O-O-O {[%emt 0:00:19]} Rc8 {[%emt 0:03:37]} 12. Nd5 {[%emt 0:27:24]} Bxd5 {[%emt 0:08:58]} 13. exd5 {[%emt 0:00:02]} Qc7 {[%emt 0:03:02]} 14. c3 {[%emt 0:05:16]} Nb6 {[%emt 0:11:37]} 15. g4 {[%emt 0:05:32]} g6 {[%emt 0:11:31]} 16. g5 {[%emt 0:02:21]} Nfd7 {[%emt 0:00:27]} 17. Qe4 {[%emt 0:02:07]} Nc4 {[%emt 0:09:53]} 18. Kb1 {[%emt 0:15:49]} b5 {[%emt 0:07:09]} 19. h4 {[%emt 0:06:35]} a5 {[%emt 0:03:56]} 20. Nd2 {[%emt 0:06:21]} Nxe3 {[%emt 0:05:52]} 21. Qxe3 {[%emt 0:00:06]} Qb7 {[%emt 0:01:22]} 22. Ne4 {[%emt 0:00:48]} Nc5 {[%emt 0:01:29]} 23. Bh3 {[%emt 0:04:07]} Rc7 {[%emt 0:00:13]} 24. Nf6+ {[%emt 0:00:07]} Bxf6 {[%emt 0:04:47]} 25. gxf6 {[%emt 0:00:01]} Nd7 {[%emt 0:00:12]} 26. f4 {[%emt 0:00:33]} Kd8 {[%emt 0:01:37]} 27. Bxd7 {[%emt 0:00:58]} Rxd7 {[%emt 0:00:01]} 28. fxe5 {[%emt 0:00:14]} dxe5 {[%emt 0:00:05]} 29. Qxe5 {[%emt 0:00:05]} Re8 {[%emt 0:00:07]} 30. Qd4 {[%emt 0:00:20]} Rd6 {[%emt 0:00:55]} 31. Qf4 {[%emt 0:08:16]} Rxd5 {[%emt 0:03:48]} 32. Rde1 {[%emt 0:07:41]} Rxe1+ {[%emt 0:03:28]} 33. Rxe1 {[%emt 0:00:01]} Qb6 {[%emt 0:00:15]} 34. Qe4 {[%emt 0:00:14]} Rd7 {[%emt 0:00:09]} 35. a4 {[%emt 0:00:53]} bxa4 {[%emt 0:01:58]} 36. Qe8+ {[%emt 0:01:24]} Kc7 {[%emt 0:00:01]} 37. Re7 {[%emt 0:00:10]} Qd6 {[%emt 0:00:30]} 38. Qxf7 {[%emt 0:00:31]} Qd1+ {[%emt 0:00:22]} 39. Ka2 {[%emt 0:00:01]} Qb3+ {[%emt 0:00:07]} 40. Qxb3 {[%emt 0:00:04]} axb3+ {[%emt 0:00:03]} 41. Kxb3 {[%emt 0:00:07]} Rxe7 {[%emt 0:00:26]} 42. fxe7 {[%emt 0:00:02]} Kd7 {[%emt 0:00:06]} 43. c4 {[%emt 0:00:22]} g5 {[%emt 0:01:29]} 44. hxg5 {[%emt 0:00:07]} h4 {[%emt 0:00:03]} 45. g6 {[%emt 0:00:15]} Kxe7 {[%emt 0:00:05]} 46. g7 {[%emt 0:00:32]} Kf7 {[%emt 0:00:06]} 47. c5 {[%emt 0:00:04]} h3 {[%emt 0:00:10]} 48. c6 {[%emt 0:00:04]} h2 {[%emt 0:00:09]} 49. c7 {[%emt 0:00:04]} h1=Q {[%emt 0:00:13]} 50. g8=Q+ {[%emt 0:00:07]} Kxg8 {[%emt 0:00:04]} 51. c8=Q+ {[%emt 0:00:07]} Kf7 {[%emt 0:00:15]} 52. Qc7+ {[%emt 0:00:05]} Ke6 {[%emt 0:00:09]} 53. Qxa5 {[%emt 0:00:13]} Qf3+ {[%emt 0:00:33]} 54. Ka2 {[%emt 0:00:09]} Kd6 {[%emt 0:01:53]} 55. Qb6+ {[%emt 0:02:33]} Kd7 {[%emt 0:00:18]} 56. Qc5 {[%emt 0:00:20]} Qg3 {[%emt 0:02:09]} 57. b3 {[%emt 0:00:25]} Qh2+ {[%emt 0:01:04]} 58. Ka3 {[%emt 0:00:03]} Qe2 {[%emt 0:01:54]} 59. Ka4 {[%emt 0:00:32]} Qa2+ {[%emt 0:00:18]} 60. Kb4 {[%emt 0:00:21]} Qd2+ {[%emt 0:00:09]} 61. Kb5 {[%emt 0:00:33]} Qd3+ {[%emt 0:00:17]} 62. Qc4 {[%emt 0:00:05]} Qf5+ {[%emt 0:00:54]} 63. Ka4 {[%emt 0:00:27]} Qb1 {[%emt 0:00:24]} 64. b4 {[%emt 0:00:25]} Qh1 {[%emt 0:00:45]} 65. Qc5 {[%emt 0:00:51]} Qa8+ {[%emt 0:00:44]} 66. Kb5 {[%emt 0:00:02]} Qb7+ {[%emt 0:00:53]} 67. Ka5 {[%emt 0:00:02]} Qa8+ {[%emt 0:00:06]} 68. Kb6 {[%emt 0:00:08]} Qd8+ {[%emt 0:00:23]} 69. Kb7 {[%emt 0:00:14]} Qh4 {[%emt 0:01:08]} 70. b5 {[%emt 0:00:14]} Qa4 {[%emt 0:00:12]} 71. Qc6+ {[%emt 0:01:13]} Ke7 {[%emt 0:00:08]} 72. b6 {[%emt 0:00:11]} Qa1 {[%emt 0:00:34]} 73. Kb8 {[%emt 0:02:53]} Qh8+ {[%emt 0:00:37]} 74. Qc8 {[%emt 0:00:11]} Qh1 {[%emt 0:00:59]} 75. Qb7+ {[%emt 0:00:05]} 1-0

[Event "7th Sharjah Challengers 2024"]
[Site "Sharjah"]
[Date "2024.05.14"]
[Round "1.10"]
[White "Khalifa Essa, Albalooshi"]
[Black "Garifullina, Leya"]
[Result "0-1"]
[ECO "A14"]
[WhiteElo "2135"]
[BlackElo "2431"]
[Annotator "TA"]
[PlyCount "74"]
[EventDate "2024.05.13"]
[EventType "swiss"]
[EventCountry "UAE"]
[SourceTitle "playchess.com"]
[Source "ChessBase"]
[SourceQuality "1"]
[TimeControl "5400+30"]

{[%evp 17,74,-53,-53,-43,-45,-50,-31,-57,-53,-85,-51,-60,-55,-67,-47,-136,-119,-116,-83,-84,-61,-81,0,-63,-40,-35,-5,-82,-93,-91,-85,-83,-68,-68,-41,-49,-33,-39,-33,-28,-25,-22,-25,-31,-27,-32,-22,-69,-59,-203,-200,-292,-298,-1104,-1091,-1077,-1056,-1030,-1009]} 1. Nf3 {[%emt 0:00:04]} d5 {[%emt 0:00:28]} 2. c4 {[%emt 0:00:09]} d4 {[%emt 0:00:11]} 3. d3 {[%emt 0:02:01]} Nc6 {[%emt 0:00:18]} 4. g3 {[%emt 0:00:28]} e5 {[%emt 0:00:07]} 5. Bg2 {[%emt 0:00:13]} Bb4+ {[%emt 0:00:07]} 6. Nbd2 {[%emt 0:00:44]} a5 {[%emt 0:01:06]} 7. a3 {[%emt 0:03:34]} Be7 {[%emt 0:00:21]} 8. b3 {[%emt 0:00:32]} Nf6 {[%emt 0:00:06]} 9. O-O {[%emt 0:00:20]} O-O {[%emt 0:00:07]} 10. Qc2 {[%emt 0:05:57]} Bf5 {[%emt 0:02:49]} 11. Bb2 {[%emt 0:07:43]} Qd7 {[%emt 0:02:11]} 12. Rfd1 {[%emt 0:04:18] Black is slightly better.} Bh3 {[%emt 0:04:21]} 13. Bh1 {[%emt 1:10:57]} Ng4 {[%emt 0:05:34]} 14. c5 {[%emt 0:00:00]} Qe6 {[%emt 0:05:40]} 15. Rdc1 {[%emt 0:00:00]} Qh6 {[%emt 0:01:53]} 16. Qd1 {[%emt 0:00:00]} (16. Nc4 $15) 16... Kh8 {[%emt 0:03:58] Black has more active pieces.} 17. Bg2 {[%emt 0:00:00]} Bxg2 {[%emt 0:04:09]} 18. Kxg2 {[%emt 0:00:00][%cal Ob3b4]} f5 {[%emt 0:00:26][%cal Oe5e4]} 19. h3 {[%emt 0:00:00][%cal Od1e1]} Nf6 {[%emt 0:04:28]} (19... e4 $17 20. dxe4 (20. Nxd4 $2 e3 $19) 20... Nxf2 21. Kxf2 fxe4 (21... Qxh3 22. Qh1 $14) 22. Nxe4 Qe3+ (22... Qxh3 23. Qd3 $16) 23. Kg2 Qxe4) 20. Nc4 {[%emt 0:00:00]} (20. b4 $1 $11) 20... Nd7 {[%emt 0:01:26][%cal Oh6e6]} ({Inferior is} 20... Bxc5 21. Ncxe5 Nxe5 22. Rxc5 (22. Nxe5 Bb6 $11) 22... Nxf3 23. exf3 $16) 21. b4 $1 {[%emt 0:00:00]} Qe6 {[%emt 0:01:08]} 22. Qd2 {[%emt 0:00:00]} (22. b5 $11 Nd8 23. e3) 22... Qd5 $17 {[%emt 0:04:20] Hoping for ...e4.} 23. Kh2 {[%emt 0:00:00]} Bf6 {[%emt 0:01:43]} 24. Ne1 {[%emt 0:00:00]} e4 {[%emt 0:02:20]} 25. Ng2 {[%emt 0:00:00]} Nde5 {[%emt 0:03:08] ...exd3 is the strong threat.} 26. Nf4 {[%emt 0:00:00]} Qf7 {[%emt 0:01:41] And now ...g5 would win.} 27. Nxe5 {[%emt 0:00:00]} Bxe5 {[%emt 0:02:39]} 28. b5 {[%emt 0:00:00]} Ne7 {[%emt 0:00:42][%cal Bc6e7,Be7d5,Bd5e3][%mdl 32]} 29. e3 {[%emt 0:00:00]} dxe3 {[%emt 0:01:23]} 30. fxe3 {[%emt 0:00:00]} Bxb2 {[%emt 0:00:05]} 31. Qxb2 {[%emt 0:00:00]} exd3 {[%emt 0:00:30] White must now prevent ...Nd5.} 32. Nxd3 {[%emt 0:00:47]} (32. Rc3 $11) 32... Nd5 $15 {[%emt 0:00:07][%cal Oa8e8]} 33. Qd4 {[%emt 0:00:21] [#] White does not recover from this.} (33. Nf4 $15) 33... Rad8 $1 $19 {[%emt 0:02:36]} 34. Ne5 {[%emt 0:05:15] [#]} (34. Qc4 {was necessary.}) 34... Qh5 $1 {[%emt 0:02:26]} 35. Rd1 $2 {[%emt 0:02:00]} (35. Re1 Nf6 36. Qh4) 35... Qe2+ {[%emt 0:01:09] Black is clearly winning.} 36. Kh1 {[%emt 0:00:24]} Nxe3 {[%emt 0:00:23][%csl Ge3][%cal Re2g2]} (36... Qxe3 $2 {perishes.} 37. Qxe3 (37. Nf7+ Kg8 $18) 37... Nxe3 38. Rxd8 Rxd8 39. Nf7+ Kg8 40. Nxd8 $18) 37. Rd2 {[%emt 0:02:35]} Qxd2 {[%emt 0:00:08] Weighted Error Value: White=0.46/Black=0.14 (very precise) .  Mistake:       	White=7     	Black=1      Inaccurate:     	White=2     	Black=3      OK:         	White=6     	Black=10     Best:        	White=1     	Black=1      Strong:       	White=1     	Black=1} 0-1

[Event "7th Sharjah Challengers 2024"]
[Site "Sharjah"]
[Date "2024.05.14"]
[Round "1.11"]
[White "Suyarov, Mukhammadzokhid"]
[Black "Ankit Ray"]
[Result "0-1"]
[ECO "B40"]
[WhiteElo "2431"]
[BlackElo "2104"]
[Annotator "TA"]
[PlyCount "134"]
[EventDate "2024.05.13"]
[EventType "swiss"]
[EventCountry "UAE"]
[SourceTitle "playchess.com"]
[Source "ChessBase"]
[SourceQuality "1"]
[TimeControl "5400+30"]

{[%evp 21,134,13,18,12,10,0,0,0,-9,-180,-192,-160,-33,-110,-34,-259,-228,-403,-398,-391,-216,-199,0,-666,-659,-649,-616,-631,-633,-640,-620,-618,-604,-615,-612,-596,-631,-606,-608,-1001,-660,-700,-678,-905,-877,-891,-884,-921,-917,-1309,-1285,-1377,-1370,-1194,-1143,-6682,-5931,-11770,-1856,-1177,-800,-800,-800,-783,-402,-800,-699,-11870,-11870,-11843,-11835,-12037,-11077,-11043,-6079,-5595,-5374,-29970,-29971,-29970,-29971,-29970,-29971,-29974,-29975,-29975,-29975,-29974,-29975,-29976,-29977,-29977,-29975,-29975,-29973,-29969,-29969,-29971,-29964,-29976,-29971,-29984,-29985,-29985,-29986,-29986,-29987,-29987,-29988,-29990,-29991,-29996,-29997,-29997,-5104]} 1. e4 {[%emt 0:00:10]} c5 {[%emt 0:00:35]} 2. Nf3 {[%emt 0:00:16]} e6 {[%emt 0:00:42]} 3. g3 {[%emt 0:00:11]} d5 {[%emt 0:00:43]} 4. exd5 {[%emt 0:00:13]} exd5 {[%emt 0:00:11]} 5. d4 {[%emt 0:00:11]} Nf6 {[%emt 0:01:23]} 6. Bg2 {[%emt 0:00:28]} Nc6 {[%emt 0:00:37]} 7. O-O {[%emt 0:00:23]} Be7 {[%emt 0:01:46]} 8. dxc5 {[%emt 0:00:14]} Bxc5 {[%emt 0:02:28]} 9. Nc3 {[%emt 0:00:42]} O-O {[%emt 0:00:53]} 10. Bg5 {[%emt 0:00:53] B40: Sicilian: 2...e6, Unusual lines.} d4 {[%emt 0:02:44]} 11. Bxf6 {[%emt 0:05:24]} Qxf6 {[%emt 0:00:08]} 12. Ne4 {[%emt 0:00:15]} Qe7 $1 {[%emt 0:00:15]} 13. Nh4 {[%emt 0:00:14]} Bb6 {[%emt 0:08:35]} 14. Qh5 $146 {[%emt 0:06:35]} ({Predecessor:} 14. Re1 Ba5 15. Re2 Bg4 16. f3 Be6 17. f4 Bc4 18. Rf2 f5 19. Nd2 Bxd2 20. Qxd2 {1-0 Munoz Pantoja,M (2477)-Vehi Bach,V (2298) Barcelona Sant Marti op-A 18th 2016 (5)}) 14... Qe5 {[%emt 0:09:22]} 15. Ng5 $2 {[%emt 0:10:53]} (15. Qxe5 $11 {and White has nothing to worry.} Nxe5 16. a4) 15... h6 $19 {[%emt 0:05:00]} 16. f4 {[%emt 0:00:17] [#]} Qc5 {[%emt 0:19:03]} (16... d3+ $1 $17 17. Kh1 Qe2 (17... Qxb2 18. Be4 $14)) 17. Kh1 $15 {[%emt 0:17:43]} Ne7 {[%emt 0:17:20]} (17... hxg5 $6 18. fxg5 $11) (17... Bd7 $17 18. g4 (18. Be4 $2 f5 $19) 18... hxg5) 18. Rae1 $2 {[%emt 0:10:00]} (18. b4 $1 $15 Qxb4 (18... Qxc2 19. Be4 $11) 19. Ne4) 18... hxg5 $19 {[%emt 0:00:41]} 19. fxg5 $2 {[%emt 0:00:13]} (19. Be4 Bf5 (19... gxh4 20. Qh7#) 20. Nxf5 Nxf5 21. b4) 19... Be6 $19 {[%emt 0:08:54]} 20. Rf4 {[%emt 0:08:48]} Bc7 {[%emt 0:08:22]} (20... Qxc2 21. Be4 g6 (21... Qxb2 22. Qh7#) 22. Qh6 $11) (20... Bd5 $142 21. Be4 g6 (21... Bxa2 22. Qh7#)) 21. Be4 $19 {[%emt 0:02:49] [#]} g6 $2 {[%emt 0:03:20]} (21... f5 $1 $19 {[%cal Rf5e4]} 22. g6 Rf6) 22. Bxg6 $2 {[%emt 0:03:14][%mdl 8192]} (22. Nxg6 $11 fxg6 23. Bxg6 Bd5+ (23... Bxa2 24. Qh7#) 24. Ree4 Bxe4+ (24... Bxf4 25. Qh7#) 25. Rxe4) 22... fxg6 $19 {[%emt 0:03:07]} (22... Nxg6 23. Nxg6 Bd5+ 24. Kg1 d3+ (24... fxg6 25. Qxg6+ Kh8 26. Rh4#) 25. Kf1 $17) 23. Nxg6 {[%emt 0:01:15]} Bxf4 {[%emt 0:04:51]} 24. Qh8+ {[%emt 0:14:40]} Kf7 {[%emt 0:00:06]} 25. Qf6+ {[%emt 0:00:05]} Ke8 {[%emt 0:01:19]} 26. Qxe6 {[%emt 0:00:02]} Be3 {[%emt 0:00:30]} 27. Nxf8 {[%emt 0:00:37]} Kxf8 {[%emt 0:00:24]} 28. c3 {[%emt 0:01:46]} Qc6+ {[%emt 0:00:13]} 29. Qxc6 {[%emt 0:00:02]} Nxc6 {[%emt 0:00:07]} 30. h4 {[%emt 0:00:07]} Re8 {[%emt 0:00:32]} 31. cxd4 {[%emt 0:00:49]} Bxd4 {[%emt 0:00:08]} 32. Rf1+ {[%emt 0:00:22]} Kg7 {[%emt 0:00:01]} 33. Kg2 {[%emt 0:00:01]} Re2+ {[%emt 0:00:02]} 34. Kh3 {[%emt 0:00:00]} Rxb2 {[%emt 0:00:24]} 35. Rf5 {[%emt 0:01:00]} Be5 {[%emt 0:00:24]} 36. h5 {[%emt 0:00:18]} Rxa2 {[%emt 0:00:21]} 37. Rf3 {[%emt 0:00:10]} Rd2 {[%emt 0:01:10]} 38. Kg4 {[%emt 0:00:42]} Rg2 {[%emt 0:01:09]} 39. Rf1 {[%emt 0:00:06]} Rxg3+ {[%emt 0:00:36]} 40. Kf5 {[%emt 0:00:03]} Ne7+ {[%emt 0:00:52]} 41. Kxe5 {[%emt 0:00:04]} Rxg5+ {[%emt 0:00:05]} 42. Ke6 {[%emt 0:00:06]} Rxh5 {[%emt 0:00:47]} 43. Rf7+ {[%emt 0:02:02]} (43. Rb1 $142 Nf5 44. Rxb7+ Kg6 45. Kd5) 43... Kg6 {[%emt 0:00:03]} 44. Rxe7 {[%emt 0:00:07]} Rb5 {[%emt 0:00:12]} 45. Re8 {[%emt 0:00:06]} Kg5 {[%emt 0:00:07]} 46. Rf8 {[%emt 0:00:04]} a5 {[%emt 0:00:14]} 47. Kd6 {[%emt 0:00:40]} b6 {[%emt 0:00:06]} 48. Rg8+ {[%emt 0:01:57]} Kf4 {[%emt 0:00:13]} 49. Rf8+ {[%emt 0:00:18]} Ke4 {[%emt 0:00:08]} 50. Re8+ {[%emt 0:00:02]} Kd4 {[%emt 0:00:12]} 51. Rh8 {[%emt 0:00:10]} Rb4 {[%emt 0:00:08]} 52. Kc6 {[%emt 0:01:40]} a4 {[%emt 0:00:14]} 53. Rh3 {[%emt 0:00:34]} Kc4 {[%emt 0:00:20]} 54. Rg3 {[%emt 0:00:36]} b5 {[%emt 0:00:30]} 55. Rh3 {[%emt 0:01:15]} Rb3 {[%emt 0:00:35]} 56. Rh4+ {[%emt 0:00:06]} Kd3 {[%emt 0:00:27]} 57. Kc5 {[%emt 0:00:46]} Ke2 {[%emt 0:00:42]} 58. Rh1 {[%emt 0:01:37]} a3 {[%emt 0:00:28]} 59. Rg1 {[%emt 0:00:05]} b4 {[%emt 0:00:33]} 60. Kb5 {[%emt 0:00:34]} Rb2 {[%emt 0:00:08]} 61. Ka4 {[%emt 0:00:05]} Kf2 {[%emt 0:00:20]} 62. Rc1 {[%emt 0:00:27]} a2 {[%emt 0:00:06]} 63. Rh1 {[%emt 0:00:04]} Kg2 {[%emt 0:00:08]} 64. Rc1 {[%emt 0:01:25]} b3 {[%emt 0:00:06]} 65. Ka3 {[%emt 0:00:02]} Rb1 {[%emt 0:00:08]} 66. Rc2+ {[%emt 0:00:01]} bxc2 {[%emt 0:00:09]} 67. Kxa2 {[%emt 0:00:03]} c1=R {[%emt 0:00:21]} 0-1